bitfinex-derivatives/quotes_ETHF0:USTF0_20251009
["timestamp","ask_amount","ask_price","bid_price","bid_amount"]
[1760020229355,3.8877,4332.2,4332.1,0.00179421]
[1760020229760,0.6799,4332.2,4332.1,0.00179421]
[1760020230263,0.9189,4332.3,4332.1,0.00179421]
[1760020230458,0.6799,4332.2,4332.1,0.00179421]
[1760020230660,3.71968501,4332.2,4332.1,0.00179421]
[1760020231159,0.2944,4331.5,4330.8,3.2078]
[1760020231350,0.6799,4330.9,4330.8,3.2078]
[1760020231551,0.9189,4330.9,4330.8,3.2078]
[1760020231751,0.239,4330.9,4330.8,3.8872]
[1760020231950,0.239,4330.9,4330.8,44.0078]
[1760020231951,0.9189,4330.9,4330.8,44.0078]
[1760020232151,0.92053065,4330.9,4330.8,44.01076353]
[1760020232358,0.24063065,4330.9,4330.8,44.69016353]
[1760020232762,0.92053065,4330.9,4330.8,44.01076353]
[1760020232952,0.92053065,4330.9,4330.3,0.6794]
[1760020232953,0.6799,4330.4,4330.3,0.4155]
[1760020233153,0.9189,4330.4,4330.3,0.4155]
[1760020233358,0.6799,4330.4,4330.3,0.4155]
[1760020233657,0.00163065,4330.9,4330.8,0.6794]
[1760020234067,0.00163065,4330.9,4330.8,0.00226196]
[1760020234264,0.68153065,4330.9,4330.8,0.00226196]
[1760020234758,0.00163065,4330.9,4330.8,0.00226196]
[1760020234964,0.00163065,4330.9,4330.8,0.68166196]
[1760020234965,0.24063065,4330.9,4330.8,0.68166196]
[1760020235159,0.24063065,4330.9,4330.3,2.30492196]
[1760020235353,0.6799,4330.8,4330.6,0.41547]
[1760020235664,0.00163065,4330.9,4330.8,0.41546]
[1760020235863,0.00163065,4330.9,4330.8,3.62326]
[1760020236062,3.5022,4332.5,4332.4,0.4153]
[1760020236259,4.1267,4332.5,4332.3,0.41531]
[1760020236456,3.4468,4332.5,4332.3,0.41531]
[1760020236766,0.9189,4333.6,4333.4,0.41521]
[1760020236954,0.6799,4333.5,4333.4,0.41521]
[1760020237156,0.00202766,4333.5,4333.4,41.21685827]
[1760020237459,0.00202766,4333.5,4333.4,41.75685827]
[1760020237858,3.2078,4334.2,4333.4,49.54944827]
[1760020238166,0.239,4334.5,4334.4,0.41511]
[1760020238357,0.239,4334.5,4333.4,40.80164827]
[1760020238358,0.6799,4334.4,4333.4,40.80164827]
[1760020238670,0.9743,4333.5,4333.4,0.00164827]
[1760020238857,0.92109401,4333.5,4333.4,0.00164827]
[1760020239061,0.24119401,4333.5,4333.4,41.21685827]
[1760020239368,0.92109401,4333.5,4333.4,40.80164827]
[1760020239561,0.24119401,4333.5,4333.4,40.80164827]
[1760020239866,0.24119401,4333.5,4333.4,41.34164827]
[1760020240362,0.00219401,4333.5,4333.4,41.34164827]
[1760020240563,0.00219401,4333.5,4333.4,41.21685827]
[1760020241062,0.00219401,4333.5,4333.4,46.75685827]
[1760020241564,0.00219401,4333.5,4333.4,41.21685827]
[1760020242163,0.239,4334.0,4333.9,0.41516]
[1760020242364,3.2078,4334.4,4333.9,0.95516]
[1760020242564,3.2078,4334.4,4334.3,0.41512]
[1760020242764,3.2078,4334.4,4333.7,0.595]
[1760020242965,0.7332,4334.3,4333.4,40.80164827]
[1760020243168,0.7332,4333.8,4333.4,40.80164827]
[1760020243469,0.7332,4333.8,4333.7,0.41517]
[1760020244164,3.62297,4333.9,4333.4,40.80164827]
[1760020244363,0.3079,4333.5,4333.4,0.00164827]
[1760020244564,1.2711,4333.5,4333.4,0.00164827]
[1760020244764,0.7242,4332.9,4332.3,3.2078]
[1760020244974,0.7242,4332.7,4332.6,0.41528]
[1760020245176,0.239,4332.8,4332.6,1.01018]
[1760020245563,0.7242,4332.7,4332.6,0.41528]
[1760020245764,0.7242,4332.7,4332.6,0.00243969]
[1760020246667,1.13947,4332.7,4332.6,0.00243969]
[1760020246868,1.13947,4332.7,4330.6,3.2078]
[1760020246869,0.3004,4331.0,4330.6,3.2078]
[1760020247170,3.2078,4330.9,4330.0,0.7915]
[1760020247369,0.8002,4331.1,4330.3,0.5973]
[1760020247768,0.07860127,4331.1,4330.9,0.41545]
[1760020247965,0.7242,4331.0,4330.9,0.41545]
[1760020248168,0.7242,4331.0,4330.6,0.41547]
[1760020248365,0.7242,4330.9,4330.7,0.41546]
[1760020248575,1.0246,4331.0,4330.9,0.41545]
[1760020249177,0.00260127,4331.1,4331.0,0.5973]
[1760020249380,0.00260127,4331.1,4331.0,3.8051]
[1760020249671,0.9632,4331.8,4331.6,0.41538]
[1760020249978,0.7242,4331.7,4331.1,41.21542]
[1760020250171,0.7242,4331.7,4331.1,40.8]
[1760020250374,3.2078,4332.4,4332.3,0.5973]
[1760020250580,3.2078,4332.9,4332.8,0.41526]
[1760020250882,3.21053188,4332.9,4332.8,0.41526]
[1760020251084,3.21053188,4332.9,4332.1,3.2078]
[1760020251381,0.7242,4332.2,4332.0,0.41533]
[1760020251677,0.41536,4331.9,4331.3,3.2078]
[1760020251880,3.2078,4331.4,4330.9,0.41544]
[1760020252078,3.2078,4331.4,4330.8,0.41545]
[1760020252079,0.7242,4331.3,4330.8,0.41545]
[1760020252581,0.7242,4330.9,4330.8,0.41545]
[1760020252788,4.171,4331.4,4330.5,40.8]
[1760020253082,0.7242,4331.3,4331.1,0.41542]
[1760020253381,0.7242,4331.3,4331.2,0.41541]
[1760020253680,3.4468,4331.4,4330.5,40.8]
[1760020253878,3.86221,4331.4,4330.5,40.8]
[1760020254181,1.0246,4331.0,4330.9,0.41544]
[1760020254481,3.932,4331.4,4331.3,0.41541]
[1760020254680,4.171,4331.4,4331.3,0.41541]
[1760020254872,3.05184726,4331.4,4331.3,1.01271]
[1760020255182,1.0246,4332.5,4332.4,0.4153]
[1760020255480,0.239,4332.5,4332.4,0.4153]
[1760020255877,0.00273188,4332.9,4332.5,0.5973]
[1760020256180,0.00273188,4332.9,4332.8,0.41526]
[1760020256374,0.7242,4332.8,4332.6,40.8]
[1760020256575,0.7242,4332.5,4330.7,2.0537985]
[1760020256776,0.7242,4330.7,4330.3,0.00205815]
[1760020256975,0.7242,4330.5,4330.3,0.00205815]
[1760020257277,0.239,4331.0,4330.9,0.41545]
[1760020258377,0.239,4331.7,4331.5,0.41539]
[1760020258577,0.239,4331.7,4331.6,0.5973]
[1760020259082,0.7242,4332.3,4332.2,0.41532]
[1760020259277,0.00273188,4332.9,4332.8,0.41526]
[1760020259777,0.00273188,4332.9,4332.8,41.21526]
[1760020260179,0.72693188,4332.9,4332.3,3.2078]
[1760020260378,0.9632,4332.8,4332.7,0.41527]
[1760020260573,0.9632,4332.8,4331.6,4.0441]
[1760020260574,0.7242,4332.5,4331.6,3.2078]
[1760020260773,0.3004,4332.6,4331.7,40.8]
[1760020260774,4.34734,4332.1,4331.7,40.8]
[1760020260976,0.7242,4331.7,4330.8,1.03865]
[1760020261176,0.7242,4331.3,4330.3,0.00205815]
[1760020261374,3.2078,4330.6,4330.4,0.41549]
[1760020261584,0.239,4330.5,4330.3,0.00205815]
[1760020261787,0.7242,4331.0,4330.9,0.41545]
[1760020261979,0.9632,4331.0,4330.9,0.41545]
[1760020262173,0.9632,4331.0,4330.5,3.2078]
[1760020262174,0.7242,4330.9,4330.8,0.41545]
[1760020262680,3.932,4331.6,4331.5,0.41539]
[1760020262884,0.7242,4332.1,4332.0,0.41534]
[1760020263079,0.239,4332.2,4332.0,0.41534]
[1760020263279,3.2078,4333.1,4332.5,0.5973]
[1760020263486,0.1846,4333.2,4332.8,4.22036]
[1760020263679,0.1846,4333.2,4332.8,3.62306]
[1760020263983,0.72693188,4332.9,4332.8,0.41526]
[1760020264177,0.00273188,4332.9,4332.8,4.22036]
[1760020264378,0.00273188,4332.9,4332.8,1.01256]
[1760020264682,0.00273188,4332.9,4332.8,0.41526]
[1760020264886,3.2078,4333.8,4333.7,0.41518]
[1760020265083,0.239,4334.0,4333.9,0.41516]
[1760020265283,0.3004,4333.8,4332.8,44.0078]
[1760020265483,0.3004,4333.2,4332.1,3.2078]
[1760020265685,3.2078,4332.9,4332.1,3.2078]
[1760020265879,0.7242,4332.8,4332.7,0.41527]
[1760020266385,5.41527,4332.8,4332.1,3.20968475]
[1760020266586,0.7242,4332.3,4332.1,0.00188475]
[1760020266776,0.9632,4332.2,4332.1,0.41721475]
[1760020267085,0.9632,4332.2,4332.1,0.00188475]
[1760020267676,5.9632,4332.2,4332.1,0.00188475]
[1760020267877,0.7242,4331.6,4330.6,3.2078]
[1760020268082,0.7242,4331.4,4330.6,3.2078]
[1760020268286,2.59405,4331.6,4331.5,0.41539]
[1760020268584,0.7242,4331.7,4331.1,3.2078]
[1760020268781,3.4468,4331.8,4331.3,0.4154]
[1760020268979,0.7242,4331.7,4331.5,0.41538]
[1760020269183,0.7242,4331.7,4331.6,0.41538]
[1760020270079,0.7242,4331.7,4331.4,0.41539]
[1760020270278,0.7242,4331.7,4331.1,0.002076]
[1760020270485,0.7242,4331.7,4330.1,0.239]
[1760020270486,0.3004,4330.8,4329.5,3.2078]
[1760020270686,0.7242,4330.0,4329.9,0.41554]
[1760020270886,0.9632,4330.0,4329.9,0.41554]
[1760020271587,0.9632,4330.0,4329.9,0.41781546]
[1760020271984,0.3004,4331.4,4329.9,5.59957546]
[1760020271985,3.932,4331.1,4329.9,5.59957546]
[1760020272180,3.932,4331.1,4331.0,0.41544]
[1760020272380,1.0246,4331.4,4331.3,0.41541]
[1760020272580,1.2636,4331.4,4331.3,0.41541]
[1760020272986,0.9632,4331.4,4331.3,0.41541]
[1760020273283,0.9632,4331.4,4330.7,40.8]
[1760020273284,1.2783,4331.4,4330.7,40.8]
[1760020273482,0.735,4330.9,4330.7,40.8]
[1760020273688,0.735,4330.9,4329.9,3.21007546]
[1760020273689,0.735,4330.5,4329.9,3.21007546]
[1760020273892,0.735,4330.1,4330.0,0.41553]
[1760020274090,3.2078,4330.1,4329.9,0.00227546]
[1760020274287,3.2078,4330.1,4329.2,3.806]
[1760020274288,0.735,4329.9,4329.2,3.2078]
[1760020274489,0.735,4329.3,4329.2,0.4156]
[1760020274692,0.974,4329.3,4329.2,0.4156]
[1760020274887,0.735,4329.2,4327.9,0.02310616]
[1760020275088,0.735,4329.2,4328.3,1.03924]
[1760020275291,3.2078,4328.9,4328.3,0.00297325]
[1760020275482,0.3043,4328.4,4328.3,0.00297325]
[1760020275687,4.4861,4328.4,4328.3,0.00297325]
[1760020275989,0.974,4328.4,4328.3,0.00297325]
[1760020276288,1.2783,4328.4,4328.3,0.00297325]
[1760020276790,6.2783,4328.4,4328.3,0.00297325]
[1760020276983,1.2783,4328.4,4328.3,0.00297325]
[1760020278391,0.974,4328.4,4328.3,0.00297325]
[1760020278886,4.1818,4328.4,4328.3,0.00297325]
[1760020279081,4.4861,4328.4,4328.3,0.00297325]
[1760020279889,1.0393,4328.4,4328.3,0.00297325]
[1760020280088,1.2783,4328.4,4328.3,0.00297325]
[1760020280289,1.0393,4328.4,4328.3,0.00297325]
[1760020280491,4.4861,4328.4,4328.3,0.00297325]
[1760020281085,4.4861,4328.4,4326.9,1.03958]
[1760020281086,0.41572,4328.1,4326.8,1.0396]
[1760020281290,3.9428,4327.5,4327.4,0.41578]
[1760020281490,3.20383925,4327.5,4327.3,0.41578]
[1760020281690,0.974,4327.4,4327.3,0.41578]
[1760020281990,0.974,4327.4,4327.3,0.41772066]
[1760020282191,0.974,4327.4,4326.6,0.6011]
[1760020282192,5.239,4327.4,4326.5,3.2078]
[1760020282398,5.239,4327.4,4325.8,1.64095]
[1760020282399,0.735,4326.6,4325.8,1.64095]
[1760020282584,0.3043,4327.2,4324.8,10.668]
[1760020282585,0.239,4326.5,4326.4,4.22478]
[1760020282794,0.735,4327.2,4327.1,0.41581]
[1760020282989,0.974,4327.2,4327.0,0.41582]
[1760020283191,0.735,4327.1,4327.0,0.41759683]
[1760020283391,0.735,4327.7,4327.6,0.41576]
[1760020283585,1.15076,4327.7,4327.0,0.00177683]
[1760020283788,0.735,4327.1,4327.0,0.00177683]
[1760020283995,0.239,4327.1,4327.0,0.41759683]
[1760020284189,3.9428,4328.3,4328.2,0.41571]
[1760020284394,3.9428,4328.3,4327.4,3.2078]
[1760020284395,4.1818,4328.3,4327.4,3.2078]
[1760020284593,0.735,4328.3,4328.1,0.41571]
[1760020284799,0.3043,4329.0,4328.9,0.41564]
[1760020285002,0.735,4328.9,4328.4,0.41568]
[1760020285194,1.0393,4328.4,4328.1,0.41571]
[1760020285395,0.735,4328.2,4327.5,40.8]
[1760020285601,0.239,4328.5,4328.0,3.2078]
[1760020285796,0.974,4328.5,4328.2,0.4157]
[1760020285996,0.239,4328.5,4328.3,0.41569]
[1760020286299,0.735,4328.4,4328.3,0.41569]
[1760020286499,0.735,4328.3,4328.0,0.41572]
[1760020286700,0.735,4328.0,4327.7,0.41574]
[1760020287003,0.735,4328.0,4327.5,40.8]
[1760020287004,3.92785,4327.8,4327.2,0.4158]
[1760020287201,0.735,4327.5,4327.2,0.4158]
[1760020287403,0.974,4327.4,4327.2,0.41579]
[1760020287802,0.239,4327.4,4327.2,0.41579]
[1760020288098,0.735,4327.7,4327.2,0.41579]
[1760020288099,0.735,4327.7,4327.2,1.03951]
[1760020288301,0.239,4327.6,4327.5,0.41577]
[1760020288897,3.9428,4328.3,4327.5,3.62357]
[1760020289098,36.3463,4329.0,4328.7,0.41565]
[1760020289099,3.2078,4328.8,4328.7,0.41565]
[1760020289298,4.1818,4328.8,4328.7,0.41565]
[1760020289899,3.2078,4328.8,4328.7,0.41565]
[1760020290211,3.4468,4329.3,4329.1,0.41562]
[1760020290908,0.239,4329.3,4329.1,1.01672]
[1760020291102,0.239,4329.3,4329.1,6.01672]
[1760020291305,0.735,4330.0,4329.1,6.01672]
[1760020291506,3.2078,4330.4,4329.9,0.41554]
[1760020291808,0.888,4330.4,4330.3,0.4155]
[1760020292205,3.2078,4330.9,4330.7,0.41547]
[1760020292400,0.239,4330.8,4330.7,0.4175973]
[1760020292607,0.974,4330.8,4330.7,0.0021273]
[1760020292904,1.2783,4330.8,4330.7,0.0021273]
[1760020293106,0.735,4330.7,4329.0,3.2078]
[1760020293409,0.735,4329.9,4329.7,0.41556]
[1760020293603,0.974,4329.8,4328.9,3.2078]
[1760020293802,3.2078,4330.1,4330.0,0.41553]
[1760020294002,3.2078,4330.1,4330.0,1.01663]
[1760020294203,0.239,4330.4,4330.3,0.4155]
[1760020294710,0.239,4330.4,4330.3,0.00279994]
[1760020294909,3.2078,4330.7,4330.6,0.41548]
[1760020295205,3.4468,4330.7,4330.3,0.00279994]
[1760020295409,0.735,4330.4,4330.3,0.00279994]
[1760020295606,0.735,4329.7,4328.7,3.2078]
[1760020295805,3.7511,4329.6,4329.2,0.41561]
[1760020296112,0.41558,4329.5,4328.8,40.8]
[1760020296307,0.41558,4329.5,4328.7,3.2078]
[1760020296308,0.735,4329.4,4328.7,3.2078]
[1760020296502,3.7511,4329.6,4329.1,0.41561]
[1760020296503,0.239,4329.3,4329.1,0.41561]
[1760020296705,0.239,4329.3,4329.2,0.6011]
[1760020297111,0.239,4329.3,4329.1,0.41561]
[1760020297406,0.239,4329.3,4328.7,3.21022232]
[1760020297612,0.239,4329.3,4329.0,0.41562]
[1760020297812,0.735,4329.1,4328.7,44.01022232]
[1760020298011,0.735,4329.2,4329.1,0.41562]
[1760020298404,0.239,4329.3,4328.7,3.21022232]
[1760020298614,0.6546,4329.3,4328.9,0.41563]
[1760020298814,0.735,4328.9,4328.7,0.00242232]
[1760020299010,3.92773,4329.0,4328.7,0.00242232]
[1760020299011,0.974,4328.8,4328.7,0.00242232]
[1760020299316,0.735,4328.8,4328.7,0.41808232]
[1760020299615,0.974,4328.8,4328.7,0.41808232]
[1760020300010,0.239,4328.8,4328.7,0.00242232]
[1760020300508,0.974,4328.8,4328.7,0.00242232]
[1760020301614,5.974,4328.8,4328.7,0.00242232]
[1760020301818,0.41571,4328.2,4327.6,3.2078]
[1760020302018,0.735,4327.9,4327.7,0.41575]
[1760020302216,0.239,4328.1,4327.9,0.41573]
[1760020302420,0.735,4328.0,4327.9,0.41573]
[1760020302814,0.735,4328.0,4327.9,0.41807886]
[1760020303012,0.735,4328.0,4327.9,0.00234886]
[1760020303317,1.0305,4328.0,4327.9,0.00234886]
[1760020304014,1.0305,4328.0,4326.6,3.2078]
[1760020304015,6.0305,4328.0,4326.6,3.2078]
[1760020304209,6.0305,4328.0,4327.4,0.41578]
[1760020304210,3.9668,4327.5,4327.4,0.41578]
[1760020304413,0.759,4327.4,4326.9,0.41583]
[1760020304615,0.759,4327.4,4326.6,44.0078]
[1760020304811,0.759,4327.4,4325.5,2.32742]
[1760020305022,0.759,4327.4,4322.4,9.64901589]
[1760020305023,10.40053,4325.0,4322.4,9.64901589]
[1760020305316,10.40053,4325.0,4319.5,1.04135]
[1760020305317,0.1759,4322.5,4320.2,0.48807]
[1760020305518,0.1759,4322.5,4320.2,0.0716]
[1760020305519,0.7148,4321.7,4320.2,0.0716]
[1760020305712,0.7148,4321.5,4320.2,0.0716]
[1760020305917,2.9979883,4321.6,4321.4,2.91590627]
[1760020306111,0.00172174,4322.5,4320.2,0.0716]
[1760020306112,0.00172174,4322.5,4320.3,2.91590627]
[1760020306421,3.2078,4321.2,4320.4,1.04115]
[1760020306618,3.3388,4321.6,4321.5,0.41635]
[1760020306815,3.3388,4321.6,4321.5,1.14395]
[1760020307016,3.3388,4321.6,4321.5,4.05985627]
[1760020307211,3.3388,4321.6,4320.5,1.04112]
[1760020307212,6.20444304,4321.6,4320.5,0.7276]
[1760020307415,3.2078,4321.2,4320.8,0.3018]
[1760020307615,3.2078,4321.7,4321.6,1.44574]
[1760020307918,0.29189373,4322.2,4322.1,0.7276]
[1760020308116,0.53089373,4322.2,4322.1,0.7276]
[1760020308420,0.00172174,4322.5,4322.2,0.41628]
[1760020308624,0.24072174,4322.5,4322.4,1.0294]
[1760020308920,0.90921105,4322.5,4322.2,0.7276]
[1760020309121,0.66848931,4322.4,4321.8,0.41632]
[1760020309320,0.66848931,4322.4,4321.1,3.2078]
[1760020309321,3.2078,4322.1,4321.2,0.7276]
[1760020309521,0.00172174,4322.5,4322.4,1.14386]
[1760020309719,0.24072174,4322.5,4322.4,1.14386]
[1760020309917,0.00172174,4322.5,4322.4,6.14386]
[1760020310629,0.00172174,4322.5,4322.4,1.14386]
[1760020311020,0.00172174,4322.5,4321.8,0.3018]
[1760020311220,3.2078,4322.3,4321.9,0.7276]
[1760020311425,0.66343503,4322.2,4322.0,0.7276]
[1760020311627,3.2078,4322.3,4322.2,1.14388]
[1760020311821,0.66285004,4322.3,4322.2,1.14388]
[1760020312224,0.14698004,4322.3,4322.2,1.14388]
[1760020312524,3.2078,4323.5,4323.4,1.14377]
[1760020312725,3.2078,4323.5,4323.4,41.5276]
[1760020313024,3.2078,4323.5,4323.4,40.8]
[1760020313524,0.00250506,4323.5,4323.4,41.94377]
[1760020313724,3.2078,4324.7,4324.0,0.41611]
[1760020313924,3.2078,4324.4,4324.1,0.4161]
[1760020314128,3.2078,4324.4,4323.4,40.8]
[1760020314129,0.239,4324.5,4324.4,0.7276]
[1760020314319,0.239,4325.3,4324.0,0.7276]
[1760020314521,0.239,4325.3,4324.7,0.41604]
[1760020314723,0.24088662,4325.3,4325.1,0.416]
[1760020314929,0.00188662,4325.3,4325.2,41.5276]
[1760020315330,3.2078,4326.4,4325.9,1.03981]
[1760020315625,3.2078,4326.4,4326.1,0.4159]
[1760020315824,3.2078,4326.4,4326.3,0.7276]
[1760020316224,3.20968241,4326.4,4326.3,0.7276]
[1760020316418,0.41573,4328.0,4326.3,5.9666]
[1760020316419,0.239,4327.5,4326.3,5.9666]
[1760020316728,0.239,4327.5,4327.4,0.7276]
[1760020317324,0.239,4328.3,4328.2,0.4157]
[1760020317523,0.239,4328.3,4327.4,3.2078]
[1760020317524,36.075,4328.8,4328.6,1.14327]
[1760020317728,3.2078,4329.2,4329.0,0.41562]
[1760020317925,0.0016535,4329.2,4329.1,0.7276]
[1760020318329,0.0016535,4329.2,4329.0,0.00203167]
[1760020318521,0.7148,4329.1,4329.0,0.00203167]
[1760020318727,3.2094535,4329.2,4329.0,0.00203167]
[1760020319123,0.0016535,4329.2,4329.1,0.7276]
[1760020319323,0.0016535,4329.2,4329.1,1.14322]
[1760020319724,0.0016535,4329.2,4329.1,9.35102]
[1760020320030,3.2078,4330.3,4329.3,0.7276]
[1760020320332,3.2078,4330.3,4329.0,0.00203167]
[1760020320333,3.2078,4330.1,4329.0,0.00203167]
[1760020320633,3.2078,4329.1,4329.0,0.00203167]
[1760020320829,4.16445842,4329.1,4329.0,0.00203167]
[1760020321035,3.44965842,4329.1,4329.0,0.00203167]
[1760020321231,3.44965842,4329.1,4329.0,0.41766167]
[1760020321428,3.44965842,4329.1,4329.0,0.00203167]
[1760020321634,0.24185842,4329.1,4329.0,1.14526167]
[1760020321830,0.24185842,4329.1,4329.0,41.94526167]
[1760020321831,8.42e-06,4329.1,4329.0,41.94526167]
[1760020322026,8.42e-06,4329.1,4329.0,46.94526167]
[1760020322230,0.082,4330.7,4329.7,1.03891]
[1760020322430,0.082,4330.7,4330.6,0.41548]
[1760020322729,0.082,4330.7,4330.5,0.41548]
[1760020323129,5.79855271,4330.7,4329.6,0.7276]
[1760020323331,3.2078,4330.4,4329.6,1.0294]
[1760020323536,0.238,4330.3,4330.2,1.14311]
[1760020323930,0.00175271,4330.7,4330.6,1.14308]
[1760020324129,0.00175271,4330.7,4329.7,3.2078]
[1760020324130,0.7148,4330.6,4329.7,3.2078]
[1760020324340,0.7148,4330.2,4329.4,0.41558]
[1760020324533,0.7148,4329.5,4329.0,0.00203167]
[1760020324728,0.7148,4329.3,4329.0,0.00203167]
[1760020324928,0.65341369,4329.2,4329.0,0.41766167]
[1760020325134,0.65341369,4329.1,4329.0,0.41766167]
[1760020325530,0.65341369,4329.1,4329.0,1.14526167]
[1760020325735,0.65341369,4329.1,4329.0,0.41766167]
[1760020325931,0.65341369,4329.1,4329.0,0.00203167]
[1760020325932,1.36821369,4329.1,4329.0,0.00203167]
[1760020326137,9.31458924,4329.1,4328.2,3.2078]
[1760020326333,0.89141369,4329.0,4328.2,3.2078]
[1760020326540,3.2078,4328.6,4328.4,0.41568]
[1760020326739,0.89141369,4328.5,4327.7,40.8]
[1760020326944,3.2078,4328.0,4327.1,3.2078]
[1760020327243,0.7148,4327.8,4327.7,0.41575]
[1760020327441,1.36615396,4327.8,4327.7,0.41575]
[1760020327743,1.36615396,4327.8,4327.1,4.24967427]
[1760020327744,9.31698545,4327.8,4327.1,0.00235427]
[1760020327942,0.7148,4327.2,4327.1,0.41815427]
[1760020328141,1.60626304,4327.2,4327.1,0.00235427]
[1760020328440,0.89146304,4327.2,4327.1,0.41816427]
[1760020328836,0.00204804,4327.2,4327.1,1.14576427]
[1760020329644,0.00204804,4327.2,4327.1,6.14576427]
[1760020329937,0.00204804,4327.2,4327.1,0.00235427]
[1760020330141,5.71684804,4327.2,4327.1,0.00235427]
[1760020330337,9.4248824,4327.2,4326.3,3.2078]
[1760020330643,0.65202777,4327.1,4326.3,3.2078]
[1760020330846,0.7148,4326.9,4326.6,0.41585]
[1760020331146,3.29243099,4327.0,4326.8,0.41584]
[1760020331437,0.238,4327.0,4326.9,0.7276]
[1760020331639,0.238,4327.0,4326.8,3.6256482]
[1760020332140,0.00204804,4327.2,4327.1,0.7276]
[1760020332341,0.00204804,4327.2,4326.9,5.238]
[1760020332342,3.2078,4328.4,4328.3,0.4157]
[1760020332644,3.4458,4328.4,4328.3,1.2847]
[1760020332840,0.238,4328.4,4328.3,42.0847]
[1760020333241,0.238,4328.4,4328.3,40.8]
[1760020333542,1.09219787,4328.4,4327.3,3.2078]
[1760020333744,0.8519,4328.0,4327.8,0.41574]
[1760020333941,0.238,4327.9,4327.7,0.41575]
[1760020334136,0.8519,4327.8,4327.7,0.41575]
[1760020334337,0.238,4327.9,4327.7,0.41575]
[1760020335035,0.238,4327.9,4327.7,1.28475]
[1760020335536,0.00229787,4328.4,4328.2,0.4157]
[1760020335941,0.00229787,4328.4,4328.3,0.869]
[1760020336138,0.00229787,4328.4,4328.3,4.0768]
[1760020337343,0.1847,4329.5,4329.4,1.28459]
[1760020337544,0.1847,4329.5,4328.8,3.2078]
[1760020337736,0.1847,4329.5,4328.1,1.38628]
[1760020337737,3.86255956,4329.4,4328.9,0.41564]
[1760020338042,8.69329297,4329.3,4328.7,0.41566]
[1760020338341,3.2078,4328.9,4328.3,3.2078]
[1760020338542,3.2078,4328.4,4327.6,1.03942]
[1760020338740,0.8519,4328.5,4327.7,0.41574]
[1760020338741,3.2078,4327.9,4327.7,0.41574]
[1760020339047,0.238,4327.9,4327.7,0.41574]
[1760020339240,0.238,4327.9,4327.7,0.41575]
[1760020339241,4.0597,4327.8,4327.7,0.41575]
[1760020339445,0.238,4327.9,4327.7,0.41575]
[1760020339641,0.238,4327.9,4327.8,0.869]
[1760020340340,0.238,4328.4,4327.8,5.11616]
[1760020340541,0.65494021,4328.3,4328.2,0.41571]
[1760020340742,0.846,4328.1,4327.4,41.83946]
[1760020340943,1.73894021,4328.0,4327.9,0.41573]
[1760020341450,0.89294021,4328.0,4327.9,0.41573]
[1760020341652,0.65494021,4328.0,4327.9,9.53063]
[1760020341847,0.238,4328.7,4328.3,1.03924]
[1760020342146,0.238,4328.7,4328.4,0.41568]
[1760020342147,0.846,4328.5,4328.4,0.41568]
[1760020342445,0.846,4328.5,4328.4,1.32278]
[1760020342446,0.65613663,4328.5,4328.4,1.32278]
[1760020342744,0.65613663,4328.5,4327.4,51.19456]
[1760020342745,0.41575,4327.8,4327.1,3.2078]
[1760020342945,0.41575,4327.8,4325.7,1.03987]
[1760020342946,0.846,4327.1,4327.0,0.41582]
[1760020343142,1.74013663,4327.1,4327.0,0.41582]
[1760020343342,1.74013663,4327.1,4326.3,3.2078]
[1760020343343,0.41582,4327.0,4326.3,3.2078]
[1760020343543,1.50213663,4326.9,4325.9,0.9071]
[1760020343850,0.846,4326.3,4325.9,0.41592]
[1760020344043,4.0538,4326.1,4325.3,44.9149]
[1760020344252,0.65613663,4326.0,4325.9,0.41592]
[1760020344548,0.65613663,4326.0,4325.9,1.32302]
[1760020344756,0.65885552,4326.0,4325.9,4.53337186]
[1760020344941,0.65885552,4326.0,4325.9,9.53337186]
[1760020345540,1.21370716,4326.9,4326.7,1.32295]
[1760020345744,0.238,4326.8,4326.7,1.32295]
[1760020346554,0.24062027,4326.8,4326.7,1.32295]
[1760020347250,0.24062027,4326.8,4326.7,42.12295]
[1760020347744,0.00262027,4326.8,4326.7,42.12295]
[1760020349143,0.238,4327.3,4327.2,1.3229]
[1760020349455,1.21370716,4327.9,4327.7,0.41575]
[1760020349845,1.21370716,4327.8,4327.2,3.2078]
[1760020350046,1.21370716,4327.6,4327.4,0.41578]
[1760020350351,4.02152942,4327.5,4327.4,0.41578]
[1760020350753,1.084,4327.5,4327.4,0.41578]
[1760020351253,1.26179,4327.4,4327.0,0.41582]
[1760020351452,1.62949716,4327.4,4327.0,0.41582]
[1760020351752,0.41581,4327.1,4326.5,3.2078]
[1760020351952,0.846,4326.9,4326.5,3.2078]
[1760020352254,0.846,4326.9,4326.8,0.41584]
[1760020352551,0.238,4327.0,4326.8,1.32294]
[1760020352754,0.238,4327.0,4326.9,0.9071]
[1760020353149,0.238,4327.0,4326.0,3.2078]
[1760020353356,0.41592,4326.0,4324.3,0.9071]
[1760020353546,3.2078,4325.8,4324.3,0.9071]
[1760020353855,3.2078,4325.0,4324.8,0.3618]
[1760020354054,0.238,4325.3,4324.8,0.3618]
[1760020354347,0.238,4325.3,4325.0,0.41601]
[1760020354548,0.238,4325.3,4325.2,1.32309]
[1760020355149,0.238,4325.3,4325.2,0.9071]
[1760020355544,3.2078,4325.6,4325.5,0.41597]
[1760020355743,0.238,4325.9,4325.6,0.41595]
[1760020355943,0.238,4325.9,4325.7,1.32304]
[1760020356143,0.238,4325.9,4325.8,0.9071]
[1760020357457,3.4458,4326.7,4326.5,1.32296]